bitfinex/quotes_BTCUSD_20250523
["timestamp","ask_amount","ask_price","bid_price","bid_amount"]
[1748024756070,0.18357044,108950.0,108940.0,1.03413421]
[1748024756733,0.18357044,108950.0,108940.0,1.00853421]
[1748024757405,0.18357044,108950.0,108940.0,1.01950351]
[1748024760555,0.18357044,108950.0,108940.0,1.21227008]
[1748024760834,0.18357044,108950.0,108940.0,1.04440351]
[1748024761009,0.18357044,108950.0,108940.0,1.2279908]
[1748024761217,0.0001521,108970.0,108950.0,0.60170447]
[1748024761422,0.21121859,108970.0,108960.0,1.64146532]
[1748024761632,0.20204226,108970.0,108960.0,1.63917126]
[1748024761855,0.20204226,108970.0,108960.0,1.64834877]
[1748024762132,0.0001521,108970.0,108960.0,2.33515312]
[1748024762409,0.21121808,108970.0,108960.0,1.65001569]
[1748024762594,0.21121808,108970.0,108960.0,1.78135603]
[1748024762788,0.21221808,108970.0,108960.0,1.76300118]
[1748024762998,0.21221808,108970.0,108960.0,1.51966992]
[1748024762999,0.20304192,108970.0,108960.0,1.51966992]
[1748024763207,0.19386551,108970.0,108960.0,0.84536907]
[1748024763420,0.19386551,108970.0,108960.0,1.41558351]
[1748024764299,0.19386551,108970.0,108960.0,1.73075553]
[1748024764300,0.00932851,108970.0,108960.0,1.73075553]
[1748024764498,0.22039467,108970.0,108960.0,1.78185553]
[1748024764714,0.03685792,108970.0,108960.0,1.78185553]
[1748024764880,0.22039467,108970.0,108960.0,1.78185553]
[1748024765092,0.03685792,108970.0,108960.0,1.78185553]
[1748024765359,0.03785792,108970.0,108960.0,1.78185553]
[1748024766545,0.2295715,108970.0,108960.0,1.78185569]
[1748024766754,0.2295715,108970.0,108960.0,1.79103286]
[1748024766965,0.2295715,108970.0,108960.0,1.80020995]
[1748024767179,0.2295715,108970.0,108960.0,1.79103286]
[1748024767706,0.2295715,108970.0,108960.0,1.80120995]
[1748024767912,0.01850459,108970.0,108960.0,1.80120995]
[1748024768111,0.027681,108970.0,108960.0,1.80120995]
[1748024768444,0.00932826,108970.0,108960.0,1.80120995]
[1748024768644,0.0185045,108970.0,108960.0,1.80120995]
[1748024768847,0.0001521,108970.0,108960.0,1.80120995]
[1748024769031,0.0001521,108970.0,108960.0,2.63084495]
[1748024769411,0.21359973,109000.0,108990.0,0.00917481]
[1748024769624,0.30743619,109010.0,109000.0,0.20183459]
[1748024769625,0.21098912,109010.0,109000.0,0.20183459]
[1748024769823,0.21098921,109010.0,109000.0,0.6070489]
[1748024770027,0.00922348,109010.0,109000.0,1.05494215]
[1748024770229,0.02756982,109010.0,109000.0,1.05494215]
[1748024770460,0.00922348,109010.0,109000.0,1.095483]
[1748024770619,0.03674279,109010.0,109000.0,1.13205938]
[1748024771219,0.03674279,109010.0,109000.0,1.16813359]
[1748024771458,0.02756949,109010.0,109000.0,1.16813359]
[1748024771665,0.21104007,109010.0,109000.0,1.07813754]
[1748024771886,0.21504007,109010.0,109000.0,1.37148573]
[1748024772314,0.0223972,109010.0,109000.0,1.41663342]
[1748024772527,0.21504007,109010.0,109000.0,1.41663342]
[1748024772743,0.2058661,109010.0,109000.0,1.4074597]
[1748024772964,0.21503948,109010.0,109000.0,1.14593615]
[1748024773173,0.2058666,109010.0,109000.0,1.15511046]
[1748024773371,0.19669347,109010.0,109000.0,1.33859669]
[1748024773573,0.03156991,109010.0,109000.0,1.3928186]
[1748024773775,0.0223967,109010.0,109000.0,1.43265945]
[1748024774238,0.03156974,109010.0,109000.0,1.43265945]
[1748024774439,0.01322357,109010.0,109000.0,1.43265945]
[1748024774698,0.00405069,109010.0,109000.0,1.43265945]
[1748024774886,0.00405069,109010.0,109000.0,2.05495245]
[1748024775301,5.069e-05,109010.0,109000.0,2.05495245]
[1748024775517,0.00922357,109010.0,109000.0,2.05595245]
[1748024775726,0.21103931,109010.0,109000.0,1.15048573]
[1748024775956,0.22021278,109010.0,109000.0,1.75692573]
[1748024776161,0.22021278,109010.0,109000.0,1.77527342]
[1748024776364,0.20186686,109010.0,109000.0,1.74975176]
[1748024776579,0.20186686,109010.0,109000.0,1.75892573]
[1748024776921,0.20186686,109010.0,109000.0,1.546917]
[1748024777129,0.19269356,109010.0,109000.0,1.53097615]
[1748024777333,0.19269356,109010.0,109000.0,1.53297615]
[1748024779199,0.24619356,109010.0,109000.0,1.44343059]
[1748024779443,0.24619356,109010.0,109000.0,0.82827059]
[1748024779684,0.24619356,109010.0,109000.0,1.10319059]
[1748024779923,0.24619356,109010.0,109000.0,1.44319059]
[1748024780133,0.24619356,109010.0,109000.0,1.44119059]
[1748024780336,0.33573912,109010.0,109000.0,0.40665421]
[1748024780564,0.41065919,109010.0,109000.0,1.06461421]
[1748024780773,0.41065919,109010.0,109000.0,1.40261421]
[1748024781178,0.19369356,109010.0,109000.0,1.57732623]
[1748024781387,0.19369356,109010.0,109000.0,0.67442006]
[1748024781388,0.0092234,109010.0,109000.0,0.67442006]
[1748024781612,0.01322348,109010.0,109000.0,0.70730843]
[1748024781829,0.00805069,109010.0,109000.0,0.70730843]
[1748024782039,0.00405069,109010.0,109000.0,0.73370843]
[1748024782239,0.00405069,109010.0,109000.0,0.76110843]
[1748024782476,0.00405069,109010.0,109000.0,1.03802843]
[1748024782692,0.00405069,109010.0,109000.0,1.03602843]
[1748024782916,0.02751417,109030.0,109020.0,0.21096943]
[1748024783158,0.00967805,109030.0,109020.0,0.48588943]
[1748024783388,0.02802078,109030.0,109020.0,0.82588943]
[1748024783637,0.22979976,109030.0,109020.0,0.83461507]
[1748024783844,0.00050686,109030.0,109020.0,0.83461507]
[1748024784050,0.02902053,109030.0,109020.0,0.83461507]
[1748024784257,0.02902044,109030.0,109020.0,0.83461507]
[1748024784513,0.01167797,109030.0,109020.0,0.97436063]
[1748024785078,0.02084916,109030.0,109020.0,0.97436063]
[1748024785276,0.02084925,109030.0,109020.0,0.97436063]
[1748024785569,0.00250686,109030.0,109020.0,0.98890148]
[1748024786420,0.00250686,109030.0,109020.0,1.39567172]
[1748024786872,0.03667898,109050.0,109040.0,0.22010126]
[1748024787076,0.22023372,109050.0,109040.0,0.86889091]
[1748024787287,0.21106404,109050.0,109040.0,0.85972055]
[1748024787489,0.20189419,109050.0,109040.0,0.85972055]
[1748024787696,0.20189419,109050.0,109040.0,1.18137892]
[1748024787903,0.20189419,109050.0,109040.0,1.20844619]
[1748024788430,0.20389419,109050.0,109040.0,1.20844619]
[1748024788632,0.20389419,109050.0,109040.0,1.1992755]
[1748024788837,0.19472417,109050.0,109040.0,1.20844627]
[1748024789347,0.19472417,109050.0,109040.0,1.21761696]
[1748024789555,0.19572417,109050.0,109040.0,1.21761696]
[1748024789767,0.00315197,109050.0,109040.0,0.63086106]
[1748024789983,0.20489385,109050.0,109040.0,1.0961512]
[1748024790158,0.20489385,109050.0,109040.0,1.28874106]
[1748024790354,0.19572409,109050.0,109040.0,1.00660564]
[1748024790566,0.19272409,109050.0,109040.0,1.00660564]
[1748024790761,0.19272409,109050.0,109040.0,1.01060564]
[1748024790997,0.19272409,109050.0,109040.0,1.02345588]
[1748024791215,0.00015197,109050.0,109040.0,2.07584521]
[1748024791431,0.01833617,109070.0,109060.0,0.20172339]
[1748024791647,0.22004097,109070.0,109060.0,0.87232339]
[1748024791851,0.25599802,109070.0,109060.0,1.05356]
[1748024791985,0.25599802,109070.0,109060.0,1.06228564]
[1748024792391,0.25599802,109070.0,109060.0,1.24567093]
[1748024792619,0.02759729,109070.0,109060.0,1.2731777]
[1748024792791,0.04093404,109070.0,109060.0,1.27317779]
[1748024792996,0.22430251,109070.0,109060.0,0.38296]
[1748024793225,0.21096643,109070.0,109060.0,0.57551455]
[1748024793435,0.20179818,109070.0,109060.0,0.57551455]
[1748024793646,0.19262985,109070.0,109060.0,0.56634529]
[1748024793852,0.19262985,109070.0,109060.0,0.4209643]
[1748024794058,9.296e-05,109070.0,109060.0,1.07594277]
[1748024794227,9.296e-05,109070.0,109060.0,1.35078277]
[1748024794434,0.01026079,109070.0,109060.0,1.37568277]
[1748024794814,0.20279726,109070.0,109060.0,1.33244518]
[1748024795020,0.21196584,109070.0,109060.0,1.33240509]
[1748024795229,0.02759737,109070.0,109060.0,1.35074268]
[1748024795429,0.02759737,109070.0,109060.0,1.36167292]
[1748024795630,0.02759737,109070.0,109060.0,1.36367292]
[1748024795805,0.21096584,109070.0,109060.0,1.36567292]
[1748024796041,0.02759737,109070.0,109060.0,1.36567292]
[1748024796244,0.02759737,109070.0,109060.0,1.36367292]
[1748024796445,0.02759737,109070.0,109060.0,1.75939292]
[1748024796616,0.02759737,109070.0,109060.0,1.76239292]
[1748024797441,0.21096584,109070.0,109060.0,1.76239292]
[1748024798574,0.02759737,109070.0,109060.0,1.76239292]
[1748024798795,0.22013426,109070.0,109060.0,1.76239292]
[1748024799113,0.22013426,109070.0,109060.0,1.46004624]
[1748024799318,0.22013426,109070.0,109060.0,0.78965454]
[1748024799319,0.25559818,109070.0,109060.0,0.78965454]
[1748024799528,0.25559818,109070.0,109060.0,1.44733454]
[1748024799671,0.25559818,109070.0,109060.0,1.10733454]
[1748024799877,0.25559818,109070.0,109060.0,1.44733454]
[1748024800086,0.25559818,109070.0,109060.0,1.4334043]
[1748024800285,0.25559818,109070.0,109060.0,1.4324043]
[1748024800483,0.25559818,109070.0,109060.0,1.4323643]
[1748024801655,0.25559818,109070.0,109060.0,1.4313643]
[1748024801803,0.25659818,109070.0,109060.0,1.4313643]
[1748024802407,0.25659818,109070.0,109060.0,0.7737243]
[1748024802644,0.25659818,109070.0,109060.0,1.4313643]
[1748024803809,0.25659818,109070.0,109060.0,1.44229454]
[1748024804014,0.25659818,109070.0,109060.0,0.78465454]
[1748024804214,0.25659818,109070.0,109060.0,1.44225454]
[1748024804444,0.34614374,109070.0,109060.0,0.01093024]
[1748024804654,0.34614374,109070.0,109050.0,0.01460087]
[1748024804655,1.08508172,109070.0,109050.0,0.01460087]
[1748024804906,1.08508172,109070.0,109030.0,0.01460087]
[1748024804907,0.23016021,109040.0,109030.0,0.01460087]
[1748024805119,0.34460577,109040.0,109030.0,0.28936087]
[1748024805554,1.18887833,109040.0,109030.0,0.01460087]
[1748024805772,1.30887833,109040.0,109030.0,0.01460087]
[1748024806216,0.85592209,109040.0,109030.0,0.01460087]
[1748024806426,0.20183426,109000.0,108990.0,0.38284]
[1748024806598,0.20183426,109000.0,108990.0,0.72284]
[1748024806809,0.20183426,109000.0,108990.0,0.38284]
[1748024807211,0.19255658,108990.0,108980.0,0.34]
[1748024807414,0.19255658,108990.0,108980.0,0.72272]
[1748024807619,0.18348623,109000.0,108990.0,0.04024085]
[1748024807620,0.17104778,109000.0,108990.0,0.04024085]
[1748024807944,0.18939631,109000.0,108990.0,0.12978641]
[1748024808157,0.18939631,109000.0,108990.0,0.13078641]
[1748024808365,0.17104862,109000.0,108990.0,0.99852]
[1748024809002,0.00917397,109000.0,108990.0,1.35200874]
[1748024809211,0.01834769,109000.0,108990.0,1.35400874]
[1748024809632,0.02752183,109000.0,108990.0,1.35400874]
[1748024809834,0.22018237,109000.0,108990.0,1.34483426]
[1748024810101,0.01834769,109000.0,108990.0,1.35973317]
[1748024810278,0.02752183,109000.0,108990.0,1.36890773]
[1748024810489,0.22018237,109000.0,108990.0,1.36690773]
[1748024810924,0.1844801,109070.0,109010.0,0.01454085]
[1748024811132,0.1925811,109050.0,109040.0,0.34]
[1748024811342,0.1925811,109050.0,109040.0,0.9976]
[1748024811552,0.21091156,109050.0,109040.0,1.19936039]
[1748024811756,0.22008099,109050.0,109040.0,1.20808466]
[1748024811971,0.21091156,109050.0,109040.0,1.20808466]
[1748024812374,0.21091156,109050.0,109040.0,1.21725518]
[1748024812583,0.20174154,109050.0,109040.0,1.21725518]
[1748024812795,0.21091181,109050.0,109040.0,1.20808466]
[1748024813002,0.21091181,109050.0,109040.0,1.2172551]
[1748024813220,0.21091181,109050.0,109040.0,1.19891405]
[1748024813458,0.21091181,109050.0,109040.0,1.20808482]
[1748024813655,0.21091181,109050.0,109040.0,1.21725534]
[1748024813887,0.21091181,109050.0,109040.0,1.20808482]
[1748024814251,0.21091181,109050.0,109040.0,0.93324482]
[1748024814449,0.20174205,109050.0,109040.0,0.91490319]
[1748024814657,0.1925722,109050.0,109040.0,1.18974319]
[1748024814854,0.1925722,109050.0,109040.0,1.19891413]
[1748024815062,0.1935722,109050.0,109040.0,1.21725576]
[1748024815527,0.1935722,109050.0,109040.0,0.55965576]
[1748024815704,0.1935722,109050.0,109040.0,1.21725576]
[1748024815914,0.1935722,109050.0,109040.0,0.00872427]
[1748024816200,0.33751776,109050.0,109040.0,0.00872427]
[1748024816623,0.33751776,109050.0,109040.0,0.27484]
[1748024816829,0.22899723,109020.0,109010.0,0.40448427]
[1748024817028,0.25619723,109020.0,109010.0,0.40499113]
[1748024817232,0.25619723,109020.0,109010.0,1.06259113]
[1748024817436,0.25619723,109020.0,109010.0,1.40259113]
[1748024817840,0.25619723,109020.0,109010.0,0.40499113]
[1748024818012,0.25619723,109020.0,109010.0,1.39386686]
[1748024818226,0.25719723,109020.0,109010.0,0.73626686]
[1748024818430,0.25719723,109020.0,109010.0,1.39386686]
[1748024818631,0.25719723,109020.0,109010.0,1.39390686]
[1748024819053,0.25819723,109020.0,109010.0,0.73630686]
[1748024819257,0.25819723,109020.0,109010.0,1.39390686]
[1748024819422,0.25819723,109020.0,109010.0,0.73630686]
[1748024819622,0.25819723,109020.0,109010.0,1.39390686]
[1748024819955,0.25819723,109020.0,109010.0,1.11906686]
[1748024820158,0.25819723,109020.0,109010.0,1.39390686]
[1748024820404,0.25819723,109020.0,109010.0,0.73630686]
[1748024820569,0.25819723,109020.0,109010.0,1.39390686]
[1748024822001,0.34774279,109020.0,109010.0,1.01118686]
[1748024822206,0.34774279,109020.0,109010.0,0.73630686]
[1748024822520,0.34774279,109020.0,109010.0,1.01118686]
[1748024822944,0.34774279,109020.0,109010.0,0.61542686]
[1748024823142,0.23099723,109020.0,109010.0,0.61542686]
[1748024823548,0.20379723,109020.0,109010.0,0.61542686]
[1748024825191,0.22859723,109020.0,109010.0,0.34054686]
[1748024825395,0.25619723,109020.0,109010.0,0.99826686]
[1748024825616,0.34574279,109020.0,109010.0,0.34054686]
[1748024825828,0.34574279,109020.0,109010.0,0.61542686]
[1748024828008,0.34574279,109020.0,109010.0,0.34054686]
[1748024828225,0.34574279,109020.0,109010.0,0.61546686]
[1748024830832,0.22859723,109020.0,109010.0,0.61546686]
[1748024831045,0.20379723,109020.0,109010.0,0.61546686]
[1748024834544,0.20379723,109020.0,109010.0,0.62422072]
[1748024834959,0.20379723,109020.0,109010.0,0.65132072]
[1748024835370,0.20379723,109020.0,109010.0,0.62422072]
[1748024838009,0.20379723,109020.0,109010.0,0.34930072]
[1748024838220,0.20379723,109020.0,109010.0,1.00670072]
[1748024840787,0.20379723,109020.0,109010.0,0.34930072]
[1748024840992,0.20379723,109020.0,109010.0,1.00670072]
[1748024844801,0.19462503,109020.0,109010.0,1.40254072]
[1748024845003,0.002,109020.0,109010.0,1.76154304]
[1748024845221,0.02951636,109020.0,109010.0,1.77988904]
[1748024845435,0.03868882,109020.0,109010.0,1.78906192]
[1748024845877,0.03868865,109020.0,109010.0,1.78906192]
[1748024846891,0.23031376,109020.0,109010.0,1.77988904]
[1748024847102,0.23031451,109020.0,109010.0,1.77988904]
[1748024847317,0.22931451,109020.0,109010.0,1.77988904]
[1748024848446,0.22931451,109020.0,109010.0,1.53803717]
[1748024848608,0.22931451,109020.0,109010.0,1.41186305]
[1748024848805,0.20179773,109020.0,109010.0,1.15153942]
[1748024849218,0.20179773,109020.0,109010.0,1.14653942]
[1748024850405,0.20179773,109020.0,109010.0,1.48653942]
[1748024852552,0.20179773,109020.0,109010.0,1.10405942]
[1748024852760,0.20179773,109020.0,109010.0,1.48649942]
[1748024853268,0.20179773,109020.0,109010.0,1.66996882]
[1748024853475,0.20179773,109020.0,109010.0,1.48649942]
[1748024853711,0.20179773,109020.0,109010.0,1.30569221]
[1748024854309,0.20179773,109020.0,109010.0,0.64837221]
[1748024854446,0.20179773,109020.0,109010.0,1.30569221]
[1748024855315,0.20179773,109020.0,109010.0,1.03081221]
[1748024855528,0.20179773,109020.0,109010.0,1.30569221]
[1748024857083,0.19262519,109020.0,109010.0,1.30569221]
[1748024857875,0.19262519,109020.0,109010.0,0.64837221]
[1748024858086,0.19262519,109020.0,109010.0,1.30569221]
[1748024858332,0.19262519,109020.0,109010.0,1.30573221]
[1748024858966,0.19262519,109020.0,109010.0,1.35903221]
[1748024859111,0.19262519,109020.0,109010.0,1.33233221]
[1748024859519,0.19262519,109020.0,109010.0,1.30573221]
[1748024860465,0.19261907,109040.0,109030.0,0.01834331]
[1748024860678,0.2365021,109050.0,109040.0,0.34]
[1748024860936,0.32604766,109050.0,109040.0,0.34]
[1748024862513,0.33004766,109050.0,109040.0,0.34]
[1748024862730,0.21096943,109020.0,109010.0,0.75963173]
[1748024862936,0.2017974,109020.0,109010.0,0.75045826]
[1748024863137,0.19262511,109020.0,109010.0,1.60038104]
[1748024863303,0.19262511,109020.0,109010.0,1.61872755]
[1748024863674,0.19262511,109020.0,109010.0,1.58576287]
[1748024863874,0.18345257,109020.0,109010.0,0.34921347]
[1748024864084,0.18345257,109020.0,109010.0,0.73584]
[1748024864500,0.18345257,109020.0,109010.0,1.39312]
[1748024864909,0.18345257,109020.0,109010.0,1.40773826]
[1748024865319,0.18345257,109020.0,109010.0,0.75045826]
[1748024865529,0.18345257,109020.0,109010.0,1.40773826]
[1748024865741,0.18345257,109020.0,109010.0,1.13285826]
[1748024865965,0.18345257,109020.0,109010.0,1.40773826]
[1748024866590,0.18345257,109020.0,109010.0,1.41286967]
[1748024869900,0.23585257,109020.0,109010.0,1.41246967]
[1748024871051,0.23585257,109020.0,109010.0,1.13758967]
[1748024871259,0.23585257,109020.0,109010.0,1.41246967]
[1748024871702,0.23585257,109020.0,109010.0,1.13758967]
[1748024871918,0.23585257,109020.0,109010.0,1.41246967]
[1748024872090,0.20995257,109020.0,109010.0,1.40149763]
[1748024873341,0.18345257,109020.0,109010.0,1.40149763]
[1748024874603,0.18345257,109020.0,109010.0,1.41246967]
[1748024876128,0.18344769,109040.0,109030.0,0.00917178]
[1748024876337,0.18344769,109040.0,109030.0,0.61717267]
[1748024876552,0.18344769,109040.0,109030.0,0.99688]
[1748024876756,0.18344769,109040.0,109030.0,1.18948745]
[1748024876987,0.18344769,109040.0,109030.0,1.20923712]
[1748024877398,0.18544769,109040.0,109030.0,1.20006542]
[1748024878302,0.18844769,109040.0,109030.0,1.20006542]
[1748024878508,0.18844769,109040.0,109030.0,1.01662967]
[1748024878719,0.18844769,109040.0,109030.0,1.2092372]
[1748024879730,0.18844769,109040.0,109030.0,1.02580145]
[1748024880584,0.18844769,109040.0,109030.0,1.01662967]
[1748024880938,0.18844769,109040.0,109030.0,1.20006542]
[1748024881604,0.18844769,109040.0,109030.0,1.01662967]
[1748024883879,0.18844769,109040.0,109030.0,1.2092372]
[1748024884113,0.005,109040.0,109030.0,1.20006542]
[1748024884315,0.03251182,109040.0,109030.0,1.24440857]
[1748024884531,0.21593074,109040.0,109030.0,1.21840857]
[1748024885024,0.20676039,109040.0,109030.0,1.20923712]
[1748024885226,0.20676039,109040.0,109030.0,1.21840873]
[1748024886302,0.19758978,109040.0,109030.0,1.20006542]
[1748024886714,0.19758978,109040.0,109030.0,1.2092372]
[1748024887126,0.18841892,109040.0,109030.0,1.2092372]
[1748024887331,0.18841892,109040.0,109030.0,1.20006542]
[1748024887534,0.18841892,109040.0,109030.0,1.20923712]
[1748024888487,0.18841892,109040.0,109030.0,1.21840873]
[1748024888890,0.18841892,109040.0,109030.0,1.22758026]
[1748024889311,0.18841892,109040.0,109030.0,1.20923712]
[1748024890709,0.18841892,109040.0,109030.0,1.01662967]
[1748024891669,0.24281892,109040.0,109030.0,1.41230967]
[1748024891873,0.24281892,109040.0,109030.0,0.75550967]
[1748024892050,0.24281892,109040.0,109030.0,1.41230967]
[1748024892258,0.24281892,109040.0,109030.0,1.40133763]
[1748024892455,0.21581892,109040.0,109030.0,1.40133763]
[1748024892665,0.24291892,109040.0,109030.0,1.40133763]
[1748024893501,0.21581892,109040.0,109030.0,1.40133763]
[1748024895340,0.24131892,109040.0,109030.0,1.12649763]
[1748024895542,0.24131892,109040.0,109030.0,1.40133763]
[1748024895753,0.24131892,109040.0,109030.0,0.74453763]
[1748024895960,0.33086448,109040.0,109030.0,1.40133763]
[1748024896612,0.33086448,109040.0,109030.0,1.06133763]
[1748024897130,0.33086448,109040.0,109030.0,1.40133763]
[1748024899225,0.33086448,109040.0,109030.0,0.74453763]
[1748024899430,0.33086448,109040.0,109030.0,1.40133763]
[1748024901049,0.33086448,109040.0,109030.0,0.74453763]
[1748024901270,0.76781378,109040.0,109030.0,0.00877763]
[1748024901481,0.79335463,109040.0,109030.0,0.00877763]
[1748024901714,1.13187006,109040.0,109030.0,0.00877763]
[1748024901961,0.61902646,109020.0,109010.0,4e-05]
[1748024902191,1.22298984,109020.0,109010.0,4e-05]
[1748024902620,1.23150527,109020.0,109010.0,4e-05]
[1748024903715,0.86847604,109020.0,109010.0,4e-05]
[1748024904362,1.23150527,109020.0,109010.0,4e-05]
[1748024904606,0.7902283,109020.0,109010.0,4e-05]
[1748024904818,0.76968745,109020.0,109010.0,4e-05]
[1748024905021,0.40365822,109020.0,109010.0,4e-05]
[1748024905245,0.40765822,109020.0,109010.0,0.27492]
[1748024905446,0.39914279,109020.0,109010.0,0.27492]
[1748024906404,0.76217202,109020.0,109010.0,4e-05]
[1748024906902,0.77217202,109020.0,109010.0,4e-05]
[1748024908772,0.76217202,109020.0,109010.0,4e-05]
[1748024909101,0.83609209,109020.0,109010.0,4e-05]
[1748024910320,0.83609209,109020.0,108950.0,0.01097204]
[1748024910321,0.01835476,108960.0,108950.0,0.01097204]
[1748024910578,0.20190835,108960.0,108950.0,0.39273204]
[1748024910908,0.34445391,108960.0,108950.0,0.28589204]
[1748024911116,0.34445391,108960.0,108950.0,0.27492]
[1748024911787,0.34445391,108960.0,108950.0,0.27707197]
[1748024912219,0.34445391,108960.0,108950.0,0.27607197]
[1748024913683,0.34445391,108960.0,108950.0,0.00015197]
[1748024913888,0.34445391,108960.0,108950.0,0.27715197]
[1748024920658,0.29145391,108960.0,108950.0,0.00215197]
[1748024920860,1.20223302,108960.0,108950.0,0.00215197]
[1748024921078,0.20200105,108910.0,108900.0,0.01097204]
[1748024921280,0.20200105,108910.0,108900.0,0.28606273]
[1748024921281,0.29154661,108910.0,108900.0,0.28606273]
[1748024921690,0.29154661,108910.0,108900.0,0.27509069]
[1748024922325,0.29154661,108910.0,108900.0,5.069e-05]
[1748024922500,0.20200105,108910.0,108900.0,0.65701069]
[1748024922925,0.20200105,108910.0,108900.0,0.99701069]
[1748024923799,0.20300105,108910.0,108900.0,0.99701069]
[1748024924117,0.20400105,108910.0,108900.0,0.99701069]
[1748024924318,0.20400105,108910.0,108900.0,0.99713069]
[1748024925484,0.29354661,108910.0,108900.0,0.34005069]
[1748024925769,0.29354661,108910.0,108900.0,0.99713069]
[1748024926276,0.20400105,108910.0,108900.0,0.99713069]
[1748024927634,0.20400105,108910.0,108900.0,0.99721069]
[1748024928098,0.20400105,108910.0,108900.0,0.34005069]
[1748024928305,0.01118121,108910.0,108900.0,0.69875686]
[1748024928525,0.002,108910.0,108900.0,1.365099]
[1748024929566,0.001,108910.0,108900.0,1.365099]
[1748024929782,0.02753918,108930.0,108920.0,0.60376313]
[1748024929987,0.22032352,108930.0,108920.0,1.26100313]
[1748024930164,0.18363604,108950.0,108940.0,0.00917936]
[1748024930375,0.19281456,108950.0,108940.0,0.64206]
[1748024930620,0.19281456,108950.0,108940.0,1.02414]
[1748024931334,0.19281456,108950.0,108940.0,0.75784688]
[1748024931560,0.19381456,108950.0,108940.0,1.00610688]
[1748024931776,0.19481456,108950.0,108940.0,1.00610688]
[1748024935251,0.19481456,108950.0,108940.0,1.00606688]
[1748024938919,0.19481456,108950.0,108940.0,1.01703892]
[1748024940135,0.19481456,108950.0,108940.0,1.01647892]
[1748024941914,0.19481456,108950.0,108940.0,0.67647892]
[1748024942333,0.19481456,108950.0,108940.0,0.66550688]
[1748024942534,0.29481456,108950.0,108940.0,0.66550688]
[1748024942743,0.102,108950.0,108940.0,0.64256423]
[1748024942942,0.12953429,108950.0,108940.0,0.64256423]
[1748024943579,0.12953429,108950.0,108940.0,0.65718249]
[1748024943804,0.12953429,108950.0,108940.0,0.92308389]
[1748024944150,0.13871272,108950.0,108940.0,1.28144168]
[1748024944564,0.32228316,108950.0,108940.0,1.25390487]
[1748024944764,0.32228316,108950.0,108940.0,1.27226283]
[1748024944969,0.31310532,108950.0,108940.0,1.26308389]
[1748024945375,0.30392722,108950.0,108940.0,1.25390487]
[1748024945695,0.30392722,108950.0,108940.0,1.28020487]
[1748024945909,0.30392722,108950.0,108940.0,1.26558661]
[1748024946438,0.092283,108950.0,108940.0,1.35513217]
[1748024946642,0.25751501,108980.0,108970.0,0.34]
[1748024946860,0.25751501,108980.0,108970.0,0.99656]
[1748024947207,0.26661597,108980.0,108970.0,1.18927341]
[1748024947405,0.26661597,108980.0,108970.0,0.99656]
[1748024947613,0.26661597,108980.0,108970.0,1.41734]
[1748024947821,0.26661597,108980.0,108970.0,1.61005358]
[1748024948071,0.26661597,108980.0,108970.0,1.64433024]
[1748024948666,0.27579171,108980.0,108970.0,1.65350674]
[1748024948866,0.27679171,108980.0,108970.0,1.65350674]
[1748024949290,0.02852688,108980.0,108970.0,1.67822383]
[1748024949526,0.22122202,108980.0,108970.0,1.678224]
[1748024949735,0.22122278,108980.0,108970.0,1.65987109]
[1748024949912,0.21204729,108980.0,108970.0,1.63477109]
[1748024950113,0.20287172,108980.0,108970.0,1.43288085]
[1748024950315,0.20287172,108980.0,108970.0,1.41834]
[1748024950573,0.20287172,108980.0,108970.0,1.39364]
[1748024951175,0.20287172,108980.0,108970.0,1.39356]
[1748024951558,0.01017523,108980.0,108970.0,1.67166709]
[1748024951768,0.25751295,109000.0,108980.0,0.55104687]
[1748024951982,0.20185228,108990.0,108980.0,0.56847147]
[1748024952185,0.20185228,108990.0,108980.0,0.84351147]
[1748024952343,0.20185228,108990.0,108980.0,0.83433582]
[1748024952714,0.1926778,108990.0,108980.0,0.86881164]
[1748024952915,0.1926778,108990.0,108980.0,0.87898721]
[1748024953125,0.20185295,108990.0,108980.0,0.59482233]
[1748024953331,0.19267822,108990.0,108980.0,0.34005069]
[1748024953752,0.19267822,108990.0,108980.0,0.99745069]
[1748024954160,0.19367822,108990.0,108980.0,0.34105069]
[1748024954366,0.19367822,108990.0,108980.0,0.99745069]
[1748024955546,0.01017515,108990.0,108980.0,0.99745069]
[1748024955755,0.2028532,108990.0,108980.0,1.19932225]
[1748024955954,0.2028532,108990.0,108980.0,1.23255068]
[1748024956160,0.19367822,108990.0,108980.0,1.03067912]
[1748024956357,0.19367822,108990.0,108980.0,1.00617912]
[1748024956762,0.19367822,108990.0,108980.0,1.00613912]
[1748024961310,0.19367822,108990.0,108980.0,0.34977912]
[1748024961640,0.19367822,108990.0,108980.0,1.00613912]
[1748024961962,0.19367822,108990.0,108980.0,1.00609912]
[1748024965236,0.19367822,108990.0,108980.0,0.73113912]
[1748024965439,0.22007822,108990.0,108980.0,1.00609912]
[1748024965642,0.24527822,108990.0,108980.0,1.00609912]
[1748024965862,0.24527822,108990.0,108980.0,0.73113912]
[1748024966071,0.24527822,108990.0,108980.0,1.00609912]
[1748024966939,0.22007822,108990.0,108980.0,1.00609912]
[1748024967265,0.24507822,108990.0,108980.0,1.00553912]
[1748024968183,0.24507822,108990.0,108980.0,0.34977912]
[1748024968447,0.24507822,108990.0,108980.0,1.00553912]
[1748024970268,0.24507822,108990.0,108980.0,0.34977912]
[1748024970474,0.24507822,108990.0,108980.0,1.00553912]
[1748024972130,0.33462378,108990.0,108980.0,0.73057912]
[1748024972404,0.33462378,108990.0,108980.0,1.00553912]
[1748024973341,0.33462378,108990.0,108980.0,0.34977912]
[1748024973572,0.33462378,108990.0,108980.0,0.73057912]
[1748024973810,0.33462378,108990.0,108980.0,1.00553912]
[1748024975216,0.33462378,108990.0,108980.0,0.34977912]
[1748024975467,0.33462378,108990.0,108980.0,1.00553912]
[1748024975728,0.33462378,108990.0,108980.0,0.62473912]
[1748024976238,0.33462378,108990.0,108980.0,0.28473912]
[1748024980763,0.33462378,108990.0,108980.0,0.28477912]
[1748024980966,0.33462378,108990.0,108980.0,0.27605069]
[1748024983489,0.33462378,108990.0,108980.0,0.00105069]
[1748024983645,0.19367822,108990.0,108980.0,0.61605069]
[1748024984819,0.19367822,108990.0,108980.0,0.62482552]
[1748024991883,0.30862378,108990.0,108980.0,0.34982552]
[1748024992051,0.33492378,108990.0,108980.0,1.00518552]
[1748024992475,0.30862378,108990.0,108980.0,1.00518552]
[1748024997177,0.30862378,108990.0,108980.0,0.73018552]
[1748024997376,0.30862378,108990.0,108980.0,1.00518552]
[1748024998118,0.28322378,108990.0,108980.0,1.00518552]
[1748024998913,0.19367822,108990.0,108980.0,1.00518552]
[1748025000375,0.22057822,108990.0,108980.0,1.00518552]
[1748025000597,0.22057822,108990.0,108980.0,0.34982552]
[1748025000764,0.33802378,108990.0,108980.0,0.73018552]
[1748025000955,0.33802378,108990.0,108980.0,1.00518552]
[1748025002811,0.33802378,108990.0,108980.0,0.66518552]
[1748025003423,0.33802378,108990.0,108980.0,0.65641069]
[1748025012689,0.31012378,108990.0,108980.0,0.65641069]
[1748025012937,0.31012378,108990.0,108980.0,0.66519498]
[1748025013407,0.33602378,108990.0,108980.0,0.66519498]